fUST/lending_fUST_20240918
["ID","MTS","AMOUNT","RATE_DAILY","PERIOD"]
[338453283,1726647817491,500.2317996,0.00022999,60]
[338453284,1726647817951,500.0,0.00022999,60]
[338453285,1726647818369,1510.79,0.00022999,60]
[338453286,1726647820057,621.84319277,0.00022999,60]
[338453287,1726647820305,500.0,0.00022999,60]
[338453288,1726647820398,500.0,0.00022999,60]
[338453289,1726647821260,892.21,0.00022999,60]
[338453290,1726647821305,1274.89,0.00022999,60]
[338453291,1726647821441,977.4,0.00022999,60]
[338453292,1726647822271,500.0,0.00022999,60]
[338453293,1726647823256,1389.48,0.00022999,60]
[338453294,1726647823592,500.0,0.00022999,60]
[338453295,1726647824769,500.0,0.00022999,60]
[338453296,1726647825596,1404.17,0.00022999,60]
[338453297,1726647826460,1050.46,0.00022999,60]
[338453298,1726647827585,1218.18,0.00022999,60]
[338453299,1726647827881,642.51,0.00022999,60]
[338453300,1726647828504,2388.47,0.00022999,60]
[338453301,1726647829005,500.0,0.00022999,60]
[338453302,1726647829473,500.0,0.00022999,60]
[338453303,1726647829908,500.0,0.00022999,60]
[338453304,1726647832534,500.0,0.00022999,60]
[338453305,1726647833033,3561.24,0.00022999,60]
[338453306,1726647833280,2701.8,0.00022999,60]
[338453307,1726647837532,2503.72,0.00022999,60]
[338453308,1726647837702,1281.56,0.00022999,60]
[338453309,1726647838390,500.0,0.00022999,60]
[338453310,1726647838445,500.0,0.00022999,60]
[338453311,1726647838844,500.0,0.00022999,60]
[338453312,1726647840672,6576.36,0.00022999,60]
[338453313,1726647842257,3021.47,0.00022999,60]
[338453314,1726647842942,529.72,0.00022999,60]
[338453315,1726647843251,500.0,0.00022999,60]
[338453316,1726647843624,500.0,0.00022999,60]
[338453317,1726647843909,500.0,0.00022999,60]
[338453318,1726647844280,500.0,0.00022999,60]
[338453319,1726647844400,1908.84,0.00022999,60]
[338453320,1726647845318,500.0,0.00022999,60]
[338453321,1726647846406,500.0,0.00022999,60]
[338453322,1726647846666,1186.1,0.00022999,60]
[338453324,1726647847127,1597.22,0.00022999,60]
[338453325,1726647848680,1225.54,0.00022999,60]
[338453326,1726647848869,733.52,0.00022999,60]
[338453327,1726647851353,500.0,0.00022999,60]
[338453328,1726647854320,487.00014505,0.00022999,60]
[338453329,1726647854830,2094.34,0.00022999,60]
[338453330,1726647855317,931.56,0.00022999,60]
[338453331,1726647856673,2038.41,0.00022999,60]
[338453332,1726647856949,6970.6,0.00022999,60]
[338453333,1726647857005,500.0,0.00022999,60]
[338453334,1726647858384,526.38,0.00022999,60]
[338453335,1726647858582,500.0,0.00022999,60]
[338453336,1726647859020,901.04,0.00022999,60]
[338453337,1726647859545,500.0,0.00022999,60]
[338453338,1726647859751,584.98,0.00022999,60]
[338453339,1726647861259,1316.41,0.00022999,60]
[338453340,1726647864738,1632.77,0.00022999,60]
[338453341,1726647865084,1286.86,0.00022999,60]
[338453342,1726647865609,1594.03,0.00022999,60]
[338453343,1726647866060,500.0,0.00022999,60]
[338453344,1726647867125,500.0,0.00022999,60]
[338453345,1726647867854,500.0,0.00022999,60]
[338453346,1726647868432,500.0,0.00022999,60]
[338453347,1726647869027,500.0,0.00022999,60]
[338453348,1726647869294,852.79,0.00022999,60]
[338453349,1726647869506,500.0,0.00022999,60]
[338453350,1726647869984,509.06,0.00022999,60]
[338453351,1726647870654,500.0,0.00022999,60]
[338453353,1726647872296,604.92,0.00022999,60]
[338453354,1726647872345,1994.73,0.00022999,60]
[338453356,1726647876271,554.64,0.00022999,60]
[338453357,1726647876634,500.0,0.00022999,60]
[338453358,1726647876971,7477.19,0.00022999,60]
[338453359,1726647877390,2075.1,0.00022999,60]
[338453360,1726647877439,684.36,0.00022999,60]
[338453361,1726647877493,1819.61,0.00022999,60]
[338453362,1726647877860,849.04,0.00022999,60]
[338453363,1726647880246,500.0,0.00022999,60]
[338453364,1726647880302,1120.12,0.00022999,60]
[338453365,1726647882545,3128.63,0.00022999,60]
[338453366,1726647885495,500.0,0.00022999,60]
[338453367,1726647885939,500.0,0.00022999,60]
[338453368,1726647890470,1779.27,0.00022999,60]
[338453369,1726647891271,500.0,0.00022999,60]
[338453370,1726647891527,500.0,0.00022999,60]
[338453371,1726647891584,721.87,0.00022999,60]
[338453372,1726647891640,500.0,0.00022999,60]
[338453373,1726647892840,500.0,0.00022999,60]
[338453374,1726647893858,500.0,0.00022999,60]
[338453375,1726647895545,500.0,0.00022999,60]
[338453376,1726647896873,500.0,0.00022999,60]
[338453377,1726647897045,2746.35,0.00022999,60]
[338453378,1726647897779,2282.56,0.00022999,60]
[338453379,1726647898741,1474.72,0.00022999,60]
[338453380,1726647899328,730.21,0.00022999,60]
[338453381,1726647899679,1403.32,0.00022999,60]
[338453382,1726647900614,500.0,0.00022999,60]
[338453383,1726647905287,500.0,0.00022999,60]
[338453384,1726647905368,500.0,0.00022999,60]
[338453385,1726647905948,811.56,0.00022999,60]
[338453386,1726647907019,882.17,0.00022999,60]
[338453387,1726647907546,500.0,0.00022999,60]
[338453388,1726647907608,500.0,0.00022999,60]
[338453389,1726647908085,500.0,0.00022999,60]
[338453390,1726647908334,500.0,0.00022999,60]
[338453391,1726647908425,987.8,0.00022999,60]
[338453392,1726647908631,500.0,0.00022999,60]
[338453393,1726647910310,500.0,0.00022999,60]
[338453394,1726647911277,526.09,0.00022999,60]
[338453395,1726647912009,1163.81,0.00022999,60]
[338453396,1726647913028,500.0,0.00022999,60]
[338453397,1726647913091,500.0,0.00022999,60]
[338453398,1726647913605,2189.97,0.00022999,60]
[338453399,1726647914796,3369.62,0.00022999,60]
[338453400,1726647916438,500.0,0.00022999,60]
[338453401,1726647917981,500.0,0.00022999,60]
[338453402,1726647920808,670.09,0.00022999,60]
[338453403,1726647921015,425.16,0.00022999,60]
[338453404,1726647921101,850.56,0.00022999,60]
[338453405,1726647921444,2408.42,0.00022999,60]
[338453406,1726647922285,500.0,0.00022999,60]
[338453407,1726647922769,790.95,0.00022999,60]
[338453408,1726647923053,500.0,0.00022999,60]
[338453409,1726647923572,2271.54,0.00022999,60]
[338453410,1726647923747,1588.97,0.00022999,60]
[338453411,1726647923806,795.65,0.00022999,60]
[338453412,1726647924121,1550.08,0.00022999,60]
[338453413,1726647924829,992.26,0.00022999,60]
[338453414,1726647926157,1296.72,0.00022999,60]
[338453415,1726647928129,500.0,0.00022999,60]
[338453416,1726647928740,500.0,0.00022999,60]
[338453417,1726647928812,876.13,0.00022999,60]
[338453418,1726647930005,2068.65,0.00022999,60]
[338453419,1726647931526,500.0,0.00022999,60]
[338453420,1726647931726,1596.84,0.00022999,60]
[338453421,1726647933592,500.0,0.00022999,60]
[338453422,1726647935071,500.0,0.00022999,60]
[338453423,1726647935529,500.0,0.00022999,60]
[338453424,1726647936605,562.72,0.00022999,60]
[338453425,1726647936763,500.0,0.00022999,60]
[338453426,1726647937846,503.75,0.00022999,60]
[338453427,1726647938177,500.0,0.00022999,60]
[338453428,1726647939789,1064.98,0.00022999,60]
[338453429,1726647939889,713.09,0.00022999,60]
[338453430,1726647942321,1577.68,0.00022999,60]
[338453431,1726647942731,500.0,0.00022999,60]
[338453432,1726647943023,500.0,0.00022999,60]
[338453433,1726647945212,500.0,0.00022999,60]
[338453434,1726647945299,1417.1,0.00022999,60]
[338453435,1726647946118,1270.28,0.00022999,60]
[338453436,1726647946171,500.0,0.00022999,60]
[338453437,1726647946378,500.0,0.00022999,60]
[338453438,1726647947317,1469.7,0.00022999,60]
[338453439,1726647947388,642.25,0.00022999,60]
[338453440,1726647948039,670.69,0.00022999,60]
[338453441,1726647949294,1271.78,0.00022999,60]
[338453442,1726647950127,699.83,0.00022999,60]
[338453443,1726647950713,560.24,0.00022999,60]
[338453444,1726647951331,500.0,0.00022999,60]
[338453445,1726647951757,871.24,0.00022999,60]
[338453446,1726647951875,500.0,0.00022999,60]
[338453447,1726647952145,500.0,0.00022999,60]
[338453448,1726647953235,3158.3,0.00022999,60]
[338453449,1726647953952,743.49,0.00022999,60]
[338453450,1726647955061,500.0,0.00022999,60]
[338453452,1726647957622,474.45901079,0.00022999,60]
[338453453,1726647957749,500.0,0.00022999,60]
[338453454,1726647958627,500.0,0.00022999,60]
[338453455,1726647961552,554.67445255,0.00022999,60]
[338453456,1726647961885,1050.96,0.00022999,60]
[338453457,1726647961961,1294.16,0.00022999,60]
[338453458,1726647962190,500.0,0.00022999,60]
[338453459,1726647963609,500.0,0.00022999,60]
[338453460,1726647964385,6428.48,0.00022999,60]
[338453461,1726647964662,1423.54,0.00022999,60]
[338453462,1726647964931,500.41,0.00022999,60]
[338453463,1726647966098,1248.46,0.00022999,60]
[338453464,1726647967078,500.0,0.00022999,60]
[338453465,1726647967137,500.0,0.00022999,60]
[338453466,1726647968567,500.0,0.00022999,60]
[338453467,1726647969069,14743.83,0.00022999,60]
[338453468,1726647970498,1657.2,0.00022999,60]
[338453469,1726647971428,1451.44,0.00022999,60]
[338453470,1726647971796,975.74,0.00022999,60]
[338453471,1726647972494,903.38,0.00022999,60]
[338453472,1726647972596,500.0,0.00022999,60]
[338453473,1726647974693,500.0,0.00022999,60]
[338453475,1726647977514,837.75,0.00022999,60]
[338453476,1726647977625,500.0,0.00022999,60]
[338453477,1726647979211,500.0,0.00022999,60]
[338453478,1726647981213,615.73,0.00022999,60]
[338453479,1726647981265,500.0,0.00022999,60]
[338453480,1726647981314,500.0,0.00022999,60]
[338453481,1726647981370,2994.71,0.00022999,60]
[338453482,1726647981421,500.0,0.00022999,60]
[338453483,1726647981708,649.59,0.00022999,60]
[338453484,1726647982634,1485.77,0.00022999,60]
[338453485,1726647984137,502.87,0.00022999,60]
[338453486,1726647984477,2078.13,0.00022999,60]
[338453487,1726647985150,500.0,0.00022999,60]
[338453488,1726647985236,439.32565726,0.00022999,60]
[338453489,1726647986231,500.0,0.00022999,60]
[338453490,1726647986351,500.0,0.00022999,60]
[338453491,1726647986434,1172.53,0.00022999,60]
[338453492,1726647986942,1417.44,0.00022999,60]
[338453493,1726647987015,500.0,0.00022999,60]
[338453494,1726647987869,500.0,0.00022999,60]
[338453495,1726647989853,500.0,0.00022999,60]
[338453496,1726647990758,500.0,0.00022999,60]
[338453497,1726647991029,688.28,0.00022999,60]
[338453498,1726647991470,1889.28,0.00022999,60]
[338453499,1726647992290,1071.25,0.00022999,60]
[338453500,1726647992620,1152.95,0.00022999,60]
[338453501,1726647994201,500.0,0.00022999,60]
[338453502,1726647994275,519.43,0.00022999,60]
[338453504,1726647997518,523.04,0.00022999,60]
[338453505,1726647999431,570.44,0.00022999,60]
[338453507,1726648001011,1379.74,0.00022999,60]
[338453508,1726648001974,1493.62,0.00022999,60]
[338453509,1726648005963,1225.54,0.00022999,60]
[338453510,1726648006481,645.26,0.00022999,60]
[338453512,1726648010446,1903.29,0.00022999,60]
[338453513,1726648010507,500.0,0.00022999,60]
[338453514,1726648012367,500.0,0.00022999,60]
[338453515,1726648012512,752.01,0.00022999,60]
[338453516,1726648012901,1498.98,0.00022999,60]
[338453517,1726648017099,500.0,0.00022999,60]
[338453518,1726648017509,1448.61,0.00022999,60]
[338453519,1726648018283,1456.84,0.00022999,60]
[338453520,1726648019547,500.0,0.00022999,60]
[338453521,1726648019737,806.81,0.00022999,60]
[338453522,1726648022482,936.67,0.00022999,60]
[338453523,1726648022579,500.0,0.00022999,60]
[338453524,1726648023426,2786.49,0.00022999,60]
[338453525,1726648024110,643.97,0.00022999,60]
[338453526,1726648025530,500.0,0.00022999,60]
[338453527,1726648025874,500.0,0.00022999,60]
[338453528,1726648027828,500.0,0.00022999,60]
[338453529,1726648028958,500.0,0.00022999,60]
[338453530,1726648030212,1425.92,0.00022999,60]
[338453531,1726648030457,858.79,0.00022999,60]
[338453532,1726648031403,1514.35,0.00022999,60]
[338453533,1726648032103,500.0,0.00022999,60]
[338453534,1726648033084,535.74,0.00022999,60]
[338453535,1726648034008,500.0,0.00022999,60]
[338453536,1726648034083,500.0,0.00022999,60]
[338453537,1726648036000,500.0,0.00022999,60]
[338453538,1726648036556,500.0,0.00022999,60]
[338453539,1726648036910,759.8,0.00022999,60]
[338453540,1726648040448,1802.45,0.00022999,60]
[338453541,1726648041995,500.0,0.00022999,60]
[338453542,1726648042764,500.0,0.00022999,60]
[338453543,1726648043350,500.0,0.00022999,60]
[338453544,1726648046588,728.3,0.00022999,60]
[338453545,1726648047267,1345.66,0.00022999,60]
[338453546,1726648047330,583.43,0.00022999,60]
[338453547,1726648048220,500.0,0.00022999,60]
[338453548,1726648050628,594.94,0.00022999,60]
[338453549,1726648054753,500.0,0.00022999,60]
[338453550,1726648055221,500.0,0.00022999,60]
[338453551,1726648056975,500.0,0.00022999,60]
[338453552,1726648057570,671.28,0.00022999,60]
[338453553,1726648057713,2156.27,0.00022999,60]
[338453554,1726648058596,3412.85,0.00022999,60]
[338453555,1726648058672,500.0,0.00022999,60]
[338453556,1726648059676,862.45,0.00022999,60]
[338453557,1726648061253,1331.59,0.00022999,60]
[338453558,1726648062885,1922.73,0.00022999,60]
[338453559,1726648063450,1841.71,0.00022999,60]
[338453560,1726648063752,1567.9,0.00022999,60]
[338453561,1726648063812,500.0,0.00022999,60]
[338453562,1726648063861,685.22,0.00022999,60]
[338453563,1726648064336,563.63104831,0.00022999,60]
[338453564,1726648065799,500.0,0.00022999,60]
[338453565,1726648067436,762.27,0.00022999,60]
[338453566,1726648068146,2895.58,0.00022999,60]
[338453567,1726648069461,951.87,0.00022999,60]
[338453568,1726648071095,1530.67,0.00022999,60]
[338453569,1726648071190,1187.68,0.00022999,60]
[338453570,1726648071941,500.0,0.00022999,60]
[338453571,1726648072697,500.0,0.00022999,60]
[338453572,1726648073291,520.25,0.00022999,60]
[338453573,1726648075493,1602.16,0.00022999,60]
[338453574,1726648077804,500.0,0.00022999,60]
[338453575,1726648079187,2007.07,0.00022999,60]
[338453576,1726648079416,500.0,0.00022999,60]
[338453577,1726648079809,500.0,0.00022999,60]
[338453578,1726648081177,500.0,0.00022999,60]
[338453579,1726648081680,500.0,0.00022999,60]
[338453580,1726648081990,896.91,0.00022999,60]
[338453581,1726648084144,6302.34,0.00022999,60]
[338453582,1726648088585,892.75,0.00022999,60]
[338453583,1726648089036,1228.17,0.00022999,60]
[338453584,1726648091135,2478.71,0.00022999,60]
[338453585,1726648091549,500.0,0.00022999,60]
[338453586,1726648092956,500.0,0.00022999,60]
[338453587,1726648093634,500.0,0.00022999,60]
[338453588,1726648095119,500.0,0.00022999,60]
[338453589,1726648095772,500.0,0.00022999,60]
[338453590,1726648097005,6680.15,0.00022999,60]
[338453591,1726648097437,500.0,0.00022999,60]
[338453592,1726648098176,581.79,0.00022999,60]
[338453593,1726648099382,1688.06,0.00022999,60]
[338453594,1726648099817,7165.64,0.00022999,60]
[338453595,1726648102339,1527.61,0.00022999,60]
[338453596,1726648102596,500.0,0.00022999,60]
[338453597,1726648103069,863.5,0.00022999,60]
[338453599,1726648105716,500.84009916,0.00022999,60]
[338453600,1726648107269,1098.64,0.00022999,60]
[338453601,1726648107315,1868.74,0.00022999,60]
[338453602,1726648107357,500.0,0.00022999,60]
[338453603,1726648107493,500.0,0.00022999,60]
[338453604,1726648107618,500.0,0.00022999,60]
[338453605,1726648108534,500.0,0.00022999,60]
[338453606,1726648110294,500.0,0.00022999,60]
[338453607,1726648112432,1743.79,0.00022999,60]
[338453608,1726648114524,500.0,0.00022999,60]
[338453609,1726648115574,1204.04,0.00022999,60]
[338453610,1726648117234,1533.03,0.00022999,60]
[338453611,1726648122110,2998.27,0.00022999,60]
[338453612,1726648122168,500.0,0.00022999,60]
[338453613,1726648122504,2276.65,0.00022999,60]
[338453614,1726648122864,500.0,0.00022999,60]
[338453615,1726648122990,500.0,0.00022999,60]
[338453616,1726648128800,904.05,0.00022999,60]
[338453618,1726648132031,961.36,0.00022999,60]
[338453626,1726648134351,946.64,0.00022999,60]
[338453627,1726648135148,500.0,0.00022999,60]
[338453628,1726648138692,1132.71,0.00022999,60]
[338453629,1726648138926,500.0,0.00022999,60]
[338453630,1726648139380,1705.14,0.00022999,60]
[338453631,1726648140648,642.17,0.00022999,60]
[338453632,1726648140702,500.0,0.00022999,60]
[338453633,1726648141185,1073.45,0.00022999,60]
[338453634,1726648142066,701.61,0.00022999,60]
[338453635,1726648145157,-300.0,0.00018999,2]
[338453636,1726648145180,-300.0,0.00018999,2]
[338453637,1726648145201,-8422.29375357,0.00019,10]
[338453638,1726648145289,504.17,0.00022999,60]
[338453639,1726648145452,815.12,0.00022999,60]
[338453640,1726648147222,500.0,0.00022999,60]
[338453641,1726648147270,500.0,0.00022999,60]
[338453642,1726648147846,500.0,0.00022999,60]
[338453643,1726648150553,500.0,0.00022999,60]
[338453644,1726648152050,727.64,0.00022999,60]
[338453645,1726648152194,250.0,0.00022999,60]
[338453646,1726648153113,500.0,0.00022999,60]
[338453647,1726648155535,500.0,0.00022999,60]
[338453648,1726648156596,3164.26,0.00022999,60]
[338453649,1726648157680,539.27,0.00022999,60]
[338453653,1726648158434,1522.77,0.00022999,60]
[338453654,1726648160577,500.0,0.00022999,60]
[338453655,1726648162430,207.30224654,0.00022999,60]
[338453656,1726648162475,500.0,0.00022999,60]
[338453657,1726648163497,500.0,0.00022999,60]
[338453658,1726648163723,1413.27,0.00022999,60]
[338453659,1726648164856,916.57,0.00022999,60]
[338453660,1726648165550,1717.87,0.00022999,60]
[338453661,1726648166359,500.0,0.00022999,60]
[338453662,1726648166459,1530.3,0.00022999,60]
[338453663,1726648168463,744.36,0.00022999,60]
[338453664,1726648170124,500.0,0.00022999,60]
[338453665,1726648170611,500.0,0.00022999,60]
[338453666,1726648171258,500.0,0.00022999,60]
[338453667,1726648173730,500.0,0.00022999,60]
[338453668,1726648174340,500.0,0.00022999,60]
[338453669,1726648175086,1402.03,0.00022999,60]
[338453670,1726648175478,500.0,0.00022999,60]
[338453671,1726648175714,500.0,0.00022999,60]
[338453672,1726648175768,517.42,0.00022999,60]
[338453673,1726648176169,500.0,0.00022999,60]
[338453674,1726648176221,1485.49,0.00022999,60]
[338453675,1726648176458,595.87,0.00022999,60]
[338453676,1726648176649,500.0,0.00022999,60]
[338453677,1726648176949,500.0,0.00022999,60]
[338453678,1726648177017,600.43,0.00022999,60]
[338453679,1726648177972,500.0,0.00022999,60]
[338453680,1726648178701,500.0,0.00022999,60]
[338453681,1726648179114,500.0,0.00022999,60]
[338453682,1726648180354,648.18,0.00022999,60]
[338453683,1726648180681,1358.05,0.00022999,60]
[338453684,1726648181135,545.42,0.00022999,60]
[338453685,1726648181338,500.0,0.00022999,60]
[338453686,1726648181770,500.0,0.00022999,60]
[338453687,1726648181925,500.0,0.00022999,60]
[338453688,1726648182895,834.93,0.00022999,60]
[338453689,1726648184739,1466.9,0.00022999,60]
[338453690,1726648185845,2026.41,0.00022999,60]
[338453691,1726648188586,813.46,0.00022999,60]
[338453692,1726648188706,500.0,0.00022999,60]
[338453693,1726648190423,567.6,0.00022999,60]
[338453694,1726648190545,500.0,0.00022999,60]
[338453695,1726648192162,567.88,0.00022999,60]
[338453696,1726648192942,500.0,0.00022999,60]
[338453697,1726648194483,1588.15,0.00022999,60]
[338453698,1726648194530,500.0,0.00022999,60]
[338453699,1726648194704,1187.0,0.00022999,60]
[338453700,1726648194843,1511.95,0.00022999,60]
[338453701,1726648195411,1364.22,0.00022999,60]
[338453702,1726648197039,1366.19,0.00022999,60]
[338453703,1726648197266,2047.1,0.00022999,60]
[338453704,1726648197535,1218.79,0.00022999,60]
[338453705,1726648198197,1007.17,0.00022999,60]
[338453706,1726648201429,500.0,0.00022999,60]
[338453707,1726648204119,500.0,0.00022999,60]
[338453708,1726648204601,500.0,0.00022999,60]
[338453709,1726648205515,3026.7,0.00022999,60]
[338453710,1726648206464,745.65,0.00022999,60]
[338453711,1726648207198,500.0,0.00022999,60]
[338453712,1726648209610,1034.43,0.00022999,60]
[338453713,1726648209709,676.24,0.00022999,60]
[338453714,1726648210552,500.0,0.00022999,60]
[338453715,1726648211806,995.15,0.00022999,60]
[338453716,1726648211965,6160.63,0.00022999,60]
[338453717,1726648212821,500.0,0.00022999,60]
[338453718,1726648213937,500.0,0.00022999,60]
[338453719,1726648214269,540.43,0.00022999,60]
[338453720,1726648214587,620.08,0.00022999,60]
[338453721,1726648214660,500.0,0.00022999,60]
[338453722,1726648215102,752.82,0.00022999,60]
[338453723,1726648215647,500.0,0.00022999,60]
[338453724,1726648215851,500.0,0.00022999,60]
[338453725,1726648216361,500.0,0.00022999,60]
[338453726,1726648216869,500.0,0.00022999,60]
[338453727,1726648217295,500.0,0.00022999,60]
[338453728,1726648217828,500.0,0.00022999,60]
[338453729,1726648219281,500.0,0.00022999,60]
[338453730,1726648219429,1658.87,0.00022999,60]
[338453731,1726648220715,483.40941318,0.00022999,60]
[338453732,1726648220872,1408.46,0.00022999,60]
[338453733,1726648221197,500.0,0.00022999,60]
[338453734,1726648221862,500.0,0.00022999,60]
[338453735,1726648224455,500.0,0.00022999,60]
[338453736,1726648225345,1390.97,0.00022999,60]
[338453737,1726648225777,500.0,0.00022999,60]
[338453738,1726648226869,708.66,0.00022999,60]
[338453739,1726648227205,2869.93,0.00022999,60]
[338453740,1726648227390,500.0,0.00022999,60]
[338453741,1726648228652,500.0,0.00022999,60]
[338453742,1726648229237,500.0,0.00022999,60]
[338453743,1726648229437,500.0,0.00022999,60]
[338453744,1726648230404,500.0,0.00022999,60]
[338453753,1726648232047,500.0,0.00022999,60]
[338453772,1726648232419,-229.7376926,0.00016735,2]
[338453773,1726648232429,-270.21427131,0.00019,10]
[338453774,1726648232441,-928.38810968,0.00019,10]
[338453775,1726648234525,500.0,0.00022999,60]
[338453776,1726648234594,500.0,0.00022999,60]
[338453777,1726648234905,500.0,0.00022999,60]
[338453778,1726648235286,848.54,0.00022999,60]
[338453779,1726648235688,500.0,0.00022999,60]
[338453780,1726648237420,659.6,0.00022999,60]
[338453781,1726648237643,1105.69,0.00022999,60]
[338453783,1726648238084,1618.13,0.00022999,60]
[338453791,1726648238477,-2467.16896305,0.00019,10]
[338453794,1726648238493,-167.19749,0.00019194,2]
[338453796,1726648238504,-300.0,0.00019385,2]
[338453797,1726648238514,-300.0,0.00019385,2]
[338453798,1726648238525,-6258.99785587,0.00019386,2]
[338453799,1726648238578,500.0,0.00022999,60]
[338453800,1726648238606,-1525.36915689,0.00019386,2]
[338453801,1726648239367,843.23,0.00022999,60]
[338453802,1726648239644,500.0,0.00022999,60]
[338453806,1726648240381,2334.97,0.00022999,60]
[338453807,1726648241546,-17115.63298724,0.00019386,2]
[338453808,1726648241556,-169.74052,0.00019617,2]
[338453809,1726648241566,-206.644587,0.00019668,2]
[338453810,1726648241576,-552.0,0.00019754,2]
[338453811,1726648241585,-4825.34733171,0.000199,2]
[338453812,1726648241594,-273.68679289,0.0002,2]
[338453813,1726648241604,-178.51466547,0.0002,10]
[338453814,1726648241613,-1216.0,0.00020237,2]
[338453815,1726648241623,-600.08646704,0.0002026,2]
[338453816,1726648241632,-206.644587,0.00020693,2]
[338453817,1726648241641,-4825.34733167,0.00020746,2]
[338453818,1726648241651,-500.0,0.00020892,2]
[338453819,1726648241662,-500.0,0.00020892,2]
[338453820,1726648241672,-198.67281259,0.00020892,2]
[338453821,1726648241682,-500.0,0.00020892,2]
[338453822,1726648241692,-284.31399138,0.00020892,2]
[338453823,1726648241706,-500.0,0.00020892,2]
[338453824,1726648241718,-500.0,0.00020892,2]
[338453825,1726648241728,-500.0,0.00020892,2]
[338453826,1726648241739,-500.0,0.00020892,2]
[338453827,1726648241750,-500.0,0.00020892,2]
[338453828,1726648241760,-500.0,0.00020892,2]
[338453829,1726648241769,-500.0,0.00020892,2]
[338453830,1726648241779,-500.0,0.00020892,2]
[338453831,1726648241788,-500.0,0.00020892,2]
[338453832,1726648241799,-500.0,0.00020892,2]
[338453833,1726648241810,-500.0,0.00020892,2]
[338453834,1726648241827,-500.0,0.00020892,2]
[338453835,1726648241841,-500.0,0.00020892,2]
[338453836,1726648241851,-500.0,0.00020892,2]
[338453837,1726648241861,-500.0,0.00020892,2]
[338453838,1726648241871,-500.0,0.00020892,2]
[338453839,1726648241883,-500.0,0.00020892,2]
[338453840,1726648241895,-500.0,0.00020892,2]
[338453841,1726648241906,-500.0,0.00020892,2]
[338453842,1726648241915,-500.0,0.00020892,2]